[Event "Live Chess"]
[Site "Chess.com"]
[Date "2023.05.20"]
[Round "-"]
[White "stevefairhurst"]
[Black "YF22Raptor"]
[Result "0-1"]
[WhiteElo "584"]
[BlackElo "1016"]
[TimeControl "300"]
[EndTime "10:52:49 PDT"]
[Termination "YF22Raptor won by checkmate"]

1. e4 {[%clk 0:04:59.4]} 1... c6 {[%clk 0:04:59.3]} 2. d4 {[%clk 0:04:58]} 2...
d5 {[%clk 0:04:58.3]} 3. Bd3 {[%clk 0:04:57.1]} 3... dxe4 {[%clk 0:04:56.7]} 4.
Bxe4 {[%clk 0:04:56.4]} 4... Nf6 {[%clk 0:04:55.4]} 5. Bf3 {[%clk 0:04:55.1]}
5... h5 {[%clk 0:04:51.1]} 6. g3 {[%clk 0:04:54.3]} 6... Bg4 {[%clk 0:04:49.6]}
7. Bxg4 {[%clk 0:04:50.4]} 7... hxg4 {[%clk 0:04:47.4]} 8. Bf4 {[%clk
0:04:49.3]} 8... e6 {[%clk 0:04:38.1]} 9. Nc3 {[%clk 0:04:48.3]} 9... Bd6 {[%clk
0:04:36]} 10. Qd2 {[%clk 0:04:43.9]} 10... Bxf4 {[%clk 0:04:34.5]} 11. Qxf4
{[%clk 0:04:42.8]} 11... Nbd7 {[%clk 0:04:27.3]} 12. O-O-O {[%clk 0:04:40.6]}
12... Nd5 {[%clk 0:04:22.9]} 13. Nxd5 {[%clk 0:04:38.9]} 13... cxd5 {[%clk
0:04:20.4]} 14. f3 {[%clk 0:04:38.2]} 14... gxf3 {[%clk 0:04:19]} 15. Nxf3
{[%clk 0:04:36.8]} 15... Qa5 {[%clk 0:04:13.5]} 16. Kb1 {[%clk 0:04:25.1]} 16...
Rc8 {[%clk 0:04:10.9]} 17. Ng5 {[%clk 0:04:20.5]} 17... Nf6 {[%clk 0:04:05.8]}
18. Rhe1 {[%clk 0:04:13.5]} 18... Qc7 {[%clk 0:04:04.2]} 19. h4 {[%clk 0:04:03]}
19... Qxc2+ {[%clk 0:03:58.5]} 20. Ka1 {[%clk 0:03:59.9]} 20... Qg6 {[%clk
0:03:44.5]} 21. Rc1 {[%clk 0:03:52.7]} 21... Rxc1+ {[%clk 0:03:42.1]} 22. Rxc1
{[%clk 0:03:52.6]} 22... O-O {[%clk 0:03:40]} 23. Rh1 {[%clk 0:03:37.3]} 23...
Nh5 {[%clk 0:03:38.8]} 24. Qg4 {[%clk 0:03:27.4]} 24... Rc8 {[%clk 0:03:35.1]}
25. a3 {[%clk 0:03:23.5]} 25... Nf6 {[%clk 0:03:31]} 26. h5 {[%clk 0:03:19.5]}
26... Nxg4 {[%clk 0:03:29.1]} 27. hxg6 {[%clk 0:03:18.2]} 27... fxg6 {[%clk
0:03:20.3]} 28. Nxe6 {[%clk 0:03:17.2]} 28... Rc6 {[%clk 0:03:13.9]} 29. Nd8
{[%clk 0:03:10.2]} 29... Rb6 {[%clk 0:03:08.6]} 30. Rh4 {[%clk 0:03:07.3]} 30...
Nf6 {[%clk 0:03:04.1]} 31. g4 {[%clk 0:02:58.8]} 31... g5 {[%clk 0:03:02.1]} 32.
Rh2 {[%clk 0:02:54.4]} 32... Nxg4 {[%clk 0:03:01]} 33. Rg2 {[%clk 0:02:53.9]}
33... Nf6 {[%clk 0:02:53.1]} 34. Rxg5 {[%clk 0:02:53.4]} 34... Kf8 {[%clk
0:02:50.8]} 35. Re5 {[%clk 0:02:50.4]} 35... Nd7 {[%clk 0:02:40.1]} 36. Ne6+
{[%clk 0:02:42.6]} 36... Kg8 {[%clk 0:02:36.5]} 37. Re2 {[%clk 0:02:39.6]} 37...
Nf6 {[%clk 0:02:31.4]} 38. Nf4 {[%clk 0:02:30.5]} 38... Rd6 {[%clk 0:02:27.7]}
39. Re7 {[%clk 0:02:22.7]} 39... Rd7 {[%clk 0:02:21.3]} 40. Re6 {[%clk 0:02:16]}
40... Kf7 {[%clk 0:02:17.4]} 41. Ka2 {[%clk 0:02:11.7]} 41... Re7 {[%clk
0:02:12.6]} 42. Rd6 {[%clk 0:02:00.5]} 42... Rd7 {[%clk 0:02:10.5]} 43. Rxd7+
{[%clk 0:01:56.2]} 43... Nxd7 {[%clk 0:02:09]} 44. Nxd5 {[%clk 0:01:55.8]} 44...
Nb6 {[%clk 0:02:03.9]} 45. Nxb6 {[%clk 0:01:53.4]} 45... axb6 {[%clk 0:02:03.1]}
46. Kb3 {[%clk 0:01:53]} 46... Ke6 {[%clk 0:02:00.2]} 47. Kc4 {[%clk 0:01:51.5]}
47... Kd6 {[%clk 0:01:59.2]} 48. d5 {[%clk 0:01:50.6]} 48... g5 {[%clk
0:01:56.7]} 49. Kd4 {[%clk 0:01:50.2]} 49... g4 {[%clk 0:01:55.9]} 50. Ke4
{[%clk 0:01:49.7]} 50... g3 {[%clk 0:01:55.3]} 51. Kf3 {[%clk 0:01:49.1]} 51...
Kxd5 {[%clk 0:01:54.1]} 52. Kxg3 {[%clk 0:01:48.5]} 52... Kc4 {[%clk 0:01:53.4]}
53. Kf4 {[%clk 0:01:47]} 53... Kb3 {[%clk 0:01:52.6]} 54. Ke5 {[%clk 0:01:46.9]}
54... Kxb2 {[%clk 0:01:52]} 55. Kd6 {[%clk 0:01:46.6]} 55... Kxa3 {[%clk
0:01:50.2]} 56. Kc7 {[%clk 0:01:46.1]} 56... b5 {[%clk 0:01:48.9]} 57. Kxb7
{[%clk 0:01:45.6]} 57... b4 {[%clk 0:01:48.4]} 58. Kb6 {[%clk 0:01:45.5]} 58...
b3 {[%clk 0:01:47.9]} 59. Kb5 {[%clk 0:01:45.3]} 59... b2 {[%clk 0:01:47.4]} 60.
Ka5 {[%clk 0:01:44.1]} 60... b1=Q {[%clk 0:01:46.4]} 61. Ka6 {[%clk 0:01:44]}
61... Kb4 {[%clk 0:01:44.1]} 62. Ka7 {[%clk 0:01:43.9]} 62... Kc5 {[%clk
0:01:43.2]} 63. Ka6 {[%clk 0:01:42.9]} 63... Qb6# {[%clk 0:01:42]} 0-1

[Event "Live Chess"]
[Site "Chess.com"]
[Date "2023.05.20"]
[Round "-"]
[White "friarnator"]
[Black "LiamClery2020"]
[Result "1/2-1/2"]
[WhiteElo "1981"]
[BlackElo "2083"]
[TimeControl "300"]
[EndTime "10:52:53 PDT"]
[Termination "Game drawn by agreement"]

1. d4 {[%clk 0:04:56.6]} 1... Nf6 {[%clk 0:04:59.3]} 2. Nc3 {[%clk 0:04:53.3]}
2... d6 {[%clk 0:04:54.1]} 3. Bg5 {[%clk 0:04:51.2]} 3... Nc6 {[%clk 0:04:52.9]}
4. e4 {[%clk 0:04:49.8]} 4... h6 {[%clk 0:04:46.6]} 5. Bh4 {[%clk 0:04:46.8]}
5... e5 {[%clk 0:04:45.5]} 6. Nf3 {[%clk 0:04:43.1]} 6... Bg4 {[%clk 0:04:44.1]}
7. d5 {[%clk 0:04:40.3]} 7... Nd4 {[%clk 0:04:42.1]} 8. Be2 {[%clk 0:04:38.7]}
8... Nxe2 {[%clk 0:04:37.3]} 9. Qxe2 {[%clk 0:04:36.8]} 9... Qd7 {[%clk
0:04:34.7]} 10. O-O-O {[%clk 0:04:26.5]} 10... Be7 {[%clk 0:04:29.3]} 11. h3
{[%clk 0:04:22.9]} 11... Bxf3 {[%clk 0:04:27.4]} 12. Qxf3 {[%clk 0:04:22.8]}
12... Nxd5 {[%clk 0:04:24.7]} 13. Nxd5 {[%clk 0:04:05.1]} 13... Bxh4 {[%clk
0:04:23.1]} 14. Qg4 {[%clk 0:04:02.8]} 14... Qxg4 {[%clk 0:04:19.9]} 15. hxg4
{[%clk 0:04:02.7]} 15... Bg5+ {[%clk 0:04:16.9]} 16. Kb1 {[%clk 0:04:01.5]}
16... O-O-O {[%clk 0:04:13.4]} 17. g3 {[%clk 0:03:59.5]} 17... c6 {[%clk
0:04:12.2]} 18. Nb4 {[%clk 0:03:55.6]} 18... a5 {[%clk 0:04:06.6]} 19. Nd3
{[%clk 0:03:53.8]} 19... Bf6 {[%clk 0:04:04.9]} 20. f4 {[%clk 0:03:51.6]} 20...
exf4 {[%clk 0:04:02.5]} 21. gxf4 {[%clk 0:03:51.5]} 21... Rhe8 {[%clk
0:04:01.6]} 22. Rde1 {[%clk 0:03:33.4]} 22... Re7 {[%clk 0:03:53.1]} 23. e5
{[%clk 0:03:29.6]} 23... dxe5 {[%clk 0:03:47.6]} 24. fxe5 {[%clk 0:03:29.5]}
24... Bg5 {[%clk 0:03:43.1]} 25. Re4 {[%clk 0:03:27]} 25... Rd5 {[%clk
0:03:35.9]} 26. Rhe1 {[%clk 0:03:25]} 26... b5 {[%clk 0:03:27.1]} 27. a3 {[%clk
0:03:17.9]} 27... Bh4 {[%clk 0:03:08.1]} 28. R1e2 {[%clk 0:03:15.7]} 28... Bg5
{[%clk 0:03:07.3]} 29. Re1 {[%clk 0:03:14.4]} 29... Kc7 {[%clk 0:03:02.4]} 30.
Nf4 {[%clk 0:03:07]} 30... Bxf4 {[%clk 0:03:01]} 31. Rxf4 {[%clk 0:03:06.9]}
31... Rdxe5 {[%clk 0:02:48.6]} 32. Rxe5 {[%clk 0:03:04.9]} 32... Rxe5 {[%clk
0:02:48.5]} 33. Rxf7+ {[%clk 0:03:04.4]} 33... Kd6 {[%clk 0:02:48.1]} 34. Rxg7
{[%clk 0:03:03.9]} 34... Rg5 {[%clk 0:02:47.7]} 35. Rh7 {[%clk 0:02:53.9]} 35...
Rxg4 {[%clk 0:02:46.7]} 36. Rxh6+ {[%clk 0:02:52.5]} 36... Kc5 {[%clk
0:02:46.3]} 1/2-1/2

[Event "Live Chess"]
[Site "Chess.com"]
[Date "2023.05.20"]
[Round "-"]
[White "vinni3012"]
[Black "ProfPoisson"]
[Result "1-0"]
[WhiteElo "1852"]
[BlackElo "1061"]
[TimeControl "300"]
[EndTime "10:52:56 PDT"]
[Termination "vinni3012 won by checkmate"]

1. d4 {[%clk 0:04:31.1]} 1... e6 {[%clk 0:04:57.2]} 2. c4 {[%clk 0:04:30.6]}
2... f5 {[%clk 0:04:55.3]} 3. Nc3 {[%clk 0:04:28.9]} 3... Nf6 {[%clk 0:04:51.4]}
4. g3 {[%clk 0:04:28.5]} 4... Bb4 {[%clk 0:04:49.6]} 5. Bg2 {[%clk 0:04:25]}
5... Bxc3+ {[%clk 0:04:48]} 6. bxc3 {[%clk 0:04:24.2]} 6... O-O {[%clk 0:04:47]}
7. e3 {[%clk 0:03:54.9]} 7... d6 {[%clk 0:04:45.4]} 8. Ne2 {[%clk 0:03:53.7]}
8... Qe8 {[%clk 0:04:16.6]} 9. O-O {[%clk 0:03:37.7]} 9... e5 {[%clk 0:04:11.7]}
10. Ba3 {[%clk 0:02:55]} 10... c5 {[%clk 0:03:36.6]} 11. d5 {[%clk 0:02:26]}
11... Qh5 {[%clk 0:03:26.6]} 12. f3 {[%clk 0:02:03]} 12... f4 {[%clk 0:03:20.4]}
13. exf4 {[%clk 0:01:55.7]} 13... exf4 {[%clk 0:03:17.6]} 14. Nxf4 {[%clk
0:01:55.6]} 14... Qh6 {[%clk 0:03:10.6]} 15. Re1 {[%clk 0:01:49.5]} 15... Bh3
{[%clk 0:03:07.7]} 16. Ne6 {[%clk 0:01:43.2]} 16... Bxg2 {[%clk 0:03:02.3]} 17.
Kxg2 {[%clk 0:01:43.1]} 17... Re8 {[%clk 0:02:47.6]} 18. Nc7 {[%clk 0:01:37]}
18... Rxe1 {[%clk 0:02:25.4]} 19. Qxe1 {[%clk 0:01:36.9]} 19... Nbd7 {[%clk
0:02:18.5]} 20. Nxa8 {[%clk 0:01:31]} 20... Ne5 {[%clk 0:02:16.4]} 21. Nc7
{[%clk 0:01:23.6]} 21... Qh5 {[%clk 0:02:10.3]} 22. Qe2 {[%clk 0:01:10.5]} 22...
Neg4 {[%clk 0:01:46.3]} 23. fxg4 {[%clk 0:01:05.6]} 23... Nxg4 {[%clk
0:01:43.6]} 24. Qe8+ {[%clk 0:01:02]} 24... Qxe8 {[%clk 0:01:39.6]} 25. Nxe8
{[%clk 0:01:01.9]} 25... Ne3+ {[%clk 0:01:37.6]} 26. Kf3 {[%clk 0:01:00.8]}
26... Nxc4 {[%clk 0:01:35.6]} 27. Bc1 {[%clk 0:00:57.1]} 27... Kf7 {[%clk
0:01:31.8]} 28. Nc7 {[%clk 0:00:54.4]} 28... Ne5+ {[%clk 0:01:27.2]} 29. Kg2
{[%clk 0:00:51.7]} 29... h6 {[%clk 0:01:20]} 30. Bf4 {[%clk 0:00:50.5]} 30... g5
{[%clk 0:01:18.3]} 31. Bxe5 {[%clk 0:00:49.4]} 31... dxe5 {[%clk 0:01:16.5]} 32.
d6 {[%clk 0:00:49.1]} 32... Kf8 {[%clk 0:01:10.9]} 33. Rd1 {[%clk 0:00:47.2]}
33... e4 {[%clk 0:01:06.8]} 34. d7 {[%clk 0:00:47.1]} 34... e3 {[%clk
0:01:03.1]} 35. d8=Q+ {[%clk 0:00:47]} 35... Kg7 {[%clk 0:01:00.5]} 36. Rd7+
{[%clk 0:00:43.6]} 36... Kg6 {[%clk 0:00:57.5]} 37. g4 {[%clk 0:00:39]} 37... h5
{[%clk 0:00:54.2]} 38. Qe8+ {[%clk 0:00:37.4]} 38... Kh6 {[%clk 0:00:50.4]} 39.
Rd6+ {[%clk 0:00:34.7]} 39... Kh7 {[%clk 0:00:48]} 40. Qf7+ {[%clk 0:00:33.5]}
40... Kh8 {[%clk 0:00:46.3]} 41. Rd8# {[%clk 0:00:33.4]} 1-0

[Event "Live Chess"]
[Site "Chess.com"]
[Date "2023.05.20"]
[Round "-"]
[White "birdseed45"]
[Black "Ferrarifan27"]
[Result "1-0"]
[WhiteElo "1867"]
[BlackElo "2066"]
[TimeControl "300"]
[EndTime "10:52:56 PDT"]
[Termination "birdseed45 won by resignation"]

1. e4 {[%clk 0:04:57.5]} 1... e5 {[%clk 0:04:58.2]} 2. Nf3 {[%clk 0:04:56.3]}
2... Nc6 {[%clk 0:04:57]} 3. Bb5 {[%clk 0:04:55]} 3... a6 {[%clk 0:04:55.5]} 4.
Ba4 {[%clk 0:04:53.2]} 4... Nf6 {[%clk 0:04:54.4]} 5. O-O {[%clk 0:04:52.1]}
5... Be7 {[%clk 0:04:53.3]} 6. Re1 {[%clk 0:04:50.6]} 6... b5 {[%clk 0:04:51.1]}
7. Bb3 {[%clk 0:04:48.4]} 7... O-O {[%clk 0:04:49.9]} 8. c3 {[%clk 0:04:47.5]}
8... d5 {[%clk 0:04:49]} 9. d3 {[%clk 0:04:46.5]} 9... dxe4 {[%clk 0:04:46.8]}
10. dxe4 {[%clk 0:04:46.4]} 10... Qxd1 {[%clk 0:04:45.2]} 11. Rxd1 {[%clk
0:04:45.2]} 11... Nxe4 {[%clk 0:04:43.4]} 12. Bd5 {[%clk 0:04:40.2]} 12... Nxf2
{[%clk 0:04:37.9]} 13. Kxf2 {[%clk 0:04:35.6]} 13... Bc5+ {[%clk 0:04:37]} 14.
Be3 {[%clk 0:04:30.9]} 14... Bxe3+ {[%clk 0:04:33.8]} 15. Kxe3 {[%clk
0:04:30.8]} 15... Bb7 {[%clk 0:04:33.1]} 16. Na3 {[%clk 0:04:12.7]} 16... Rad8
{[%clk 0:04:18.3]} 17. Bxc6 {[%clk 0:04:07.7]} 17... Bxc6 {[%clk 0:04:15.6]} 18.
Rxd8 {[%clk 0:04:05.9]} 18... Rxd8 {[%clk 0:04:14.4]} 19. Nc2 {[%clk 0:03:58.4]}
19... f6 {[%clk 0:04:11.6]} 20. Nb4 {[%clk 0:03:55.9]} 20... Bb7 {[%clk
0:04:09.6]} 21. a4 {[%clk 0:03:48.9]} 21... bxa4 {[%clk 0:03:43.5]} 22. Rxa4
{[%clk 0:03:48.8]} 22... Rd6 {[%clk 0:03:42.6]} 23. Nd2 {[%clk 0:03:29.2]} 23...
Bxg2 {[%clk 0:03:35]} 24. Rxa6 {[%clk 0:03:25]} 24... Rd8 {[%clk 0:03:30.9]} 25.
Ne4 {[%clk 0:03:17.2]} 25... f5 {[%clk 0:03:26.7]} 26. Nf2 {[%clk 0:03:06]}
26... f4+ {[%clk 0:03:24.5]} 27. Ke2 {[%clk 0:03:03.9]} 27... e4 {[%clk
0:03:19.6]} 28. Re6 {[%clk 0:03:01]} 28... Kf7 {[%clk 0:03:14.4]} 29. Re5 {[%clk
0:02:44]} 29... Kf6 {[%clk 0:03:12.8]} 30. Ng4+ {[%clk 0:02:38.7]} 30... Kg6
{[%clk 0:03:07.3]} 31. Nd5 {[%clk 0:02:30.1]} 31... h5 {[%clk 0:02:49.7]} 32.
Nxf4+ {[%clk 0:02:24.4]} 32... Kf7 {[%clk 0:02:47.8]} 33. Nxg2 {[%clk
0:02:12.7]} 33... hxg4 {[%clk 0:02:36.7]} 34. Rxe4 {[%clk 0:02:11.4]} 34... Rb8
{[%clk 0:02:31.2]} 35. b4 {[%clk 0:02:08]} 35... Ra8 {[%clk 0:02:27.3]} 36. Rxg4
{[%clk 0:02:03.8]} 36... Ra2+ {[%clk 0:02:26.1]} 37. Kf3 {[%clk 0:02:02.4]}
37... Rc2 {[%clk 0:02:21]} 38. Rc4 {[%clk 0:01:58.5]} 38... Kf6 {[%clk
0:02:17.8]} 39. Ne3 {[%clk 0:01:55.8]} 39... Rc1 {[%clk 0:02:10.1]} 40. Rxc7
{[%clk 0:01:50.8]} 40... g5 {[%clk 0:02:09.4]} 41. Ng4+ {[%clk 0:01:46.7]} 41...
Kf5 {[%clk 0:02:07.9]} 42. Rc5+ {[%clk 0:01:44.3]} 42... Kg6 {[%clk 0:02:06]}
43. b5 {[%clk 0:01:38.6]} 43... Kh5 {[%clk 0:02:02]} 44. h3 {[%clk 0:01:34.3]}
44... Rf1+ {[%clk 0:01:53.6]} 45. Kg2 {[%clk 0:01:30.7]} 45... Rb1 {[%clk
0:01:51.4]} 46. c4 {[%clk 0:01:27.5]} 46... Rb2+ {[%clk 0:01:48.5]} 47. Kg3
{[%clk 0:01:26.3]} 47... Rb3+ {[%clk 0:01:47.1]} 48. Kg2 {[%clk 0:01:25.3]}
48... Kh4 {[%clk 0:01:45.8]} 49. Rc8 {[%clk 0:01:20]} 49... Rb2+ {[%clk
0:01:39.2]} 50. Nf2 {[%clk 0:01:18.9]} 50... Kh5 {[%clk 0:01:31.1]} 51. Rb8
{[%clk 0:01:11.3]} 51... Rc2 {[%clk 0:01:27.8]} 52. Rc8 {[%clk 0:01:09.1]} 52...
Rb2 {[%clk 0:01:26.3]} 53. Kf3 {[%clk 0:01:07.9]} 53... Rb3+ {[%clk 0:01:20.3]}
54. Ke4 {[%clk 0:01:07.1]} 54... Kh4 {[%clk 0:01:17.8]} 55. Kd5 {[%clk
0:01:01.3]} 55... Kg3 {[%clk 0:01:15.4]} 56. Ne4+ {[%clk 0:01:00.1]} 56... Kf4
{[%clk 0:01:10.9]} 57. Rf8+ {[%clk 0:00:58.2]} 57... Ke3 {[%clk 0:01:06.6]} 58.
Nxg5 {[%clk 0:00:57.5]} 58... Kd3 {[%clk 0:01:03.1]} 59. Kc5 {[%clk 0:00:54.2]}
59... Kc2 {[%clk 0:00:58.5]} 60. b6 {[%clk 0:00:53]} 60... Kb2 {[%clk
0:00:56.1]} 61. Kc6 {[%clk 0:00:51.6]} 61... Ka3 {[%clk 0:00:55.1]} 62. c5
{[%clk 0:00:50.8]} 62... Ka4 {[%clk 0:00:53.5]} 63. b7 {[%clk 0:00:50]} 63...
Ka5 {[%clk 0:00:52.4]} 64. b8=Q {[%clk 0:00:49.1]} 64... Rxb8 {[%clk 0:00:43.5]}
65. Rxb8 {[%clk 0:00:49]} 1-0

[Event "Live Chess"]
[Site "Chess.com"]
[Date "2023.05.20"]
[Round "-"]
[White "alanmike75"]
[Black "MarkLim1"]
[Result "1-0"]
[WhiteElo "1491"]
[BlackElo "1612"]
[TimeControl "300"]
[EndTime "10:52:58 PDT"]
[Termination "alanmike75 won by resignation"]

1. e4 {[%clk 0:04:57.4]} 1... e6 {[%clk 0:04:58.6]} 2. d4 {[%clk 0:04:55.2]}
2... d5 {[%clk 0:04:58.1]} 3. e5 {[%clk 0:04:54.2]} 3... c5 {[%clk 0:04:57.2]}
4. c3 {[%clk 0:04:53.3]} 4... Nc6 {[%clk 0:04:56.8]} 5. Nf3 {[%clk 0:04:52.5]}
5... Nge7 {[%clk 0:04:55.9]} 6. Be2 {[%clk 0:04:51.7]} 6... Nf5 {[%clk
0:04:55.1]} 7. b3 {[%clk 0:04:50.7]} 7... cxd4 {[%clk 0:04:54.2]} 8. cxd4 {[%clk
0:04:49.6]} 8... Qb6 {[%clk 0:04:53.7]} 9. Bb2 {[%clk 0:04:46.7]} 9... Bb4+
{[%clk 0:04:49.5]} 10. Kf1 {[%clk 0:04:45.7]} 10... Bd7 {[%clk 0:04:47.6]} 11.
g4 {[%clk 0:04:44.1]} 11... Nfe7 {[%clk 0:04:46.4]} 12. a3 {[%clk 0:04:42.6]}
12... Ba5 {[%clk 0:04:43.4]} 13. b4 {[%clk 0:04:41.5]} 13... O-O {[%clk
0:04:38.5]} 14. Bc3 {[%clk 0:04:35.4]} 14... Bxb4 {[%clk 0:04:30.1]} 15. Bxb4
{[%clk 0:04:32]} 15... Rfe8 {[%clk 0:04:29.3]} 16. Bxe7 {[%clk 0:04:28]} 16...
Rxe7 {[%clk 0:04:28.3]} 17. Nbd2 {[%clk 0:04:24.5]} 17... Na5 {[%clk 0:04:27.1]}
18. Rb1 {[%clk 0:04:19.5]} 18... Qc7 {[%clk 0:04:25.8]} 19. Kg2 {[%clk 0:04:16]}
19... b5 {[%clk 0:04:23.6]} 20. Qc1 {[%clk 0:04:10.7]} 20... Nc4 {[%clk
0:04:22.6]} 21. Nxc4 {[%clk 0:04:09.1]} 21... bxc4 {[%clk 0:04:20]} 22. Qc3
{[%clk 0:04:07.6]} 22... Rae8 {[%clk 0:04:18.1]} 23. Rb4 {[%clk 0:04:03.7]}
23... f6 {[%clk 0:04:16.9]} 24. Rhb1 {[%clk 0:04:00]} 24... fxe5 {[%clk
0:04:16]} 25. Nxe5 {[%clk 0:03:58.8]} 25... a6 {[%clk 0:04:13.1]} 26. Rb7 {[%clk
0:03:51.1]} 26... Qd8 {[%clk 0:04:12.2]} 27. Qb4 {[%clk 0:03:35.4]} 27... Kf8
{[%clk 0:04:07.3]} 28. Rxd7 {[%clk 0:03:30.8]} 1-0

[Event "Live Chess"]
[Site "Chess.com"]
[Date "2023.05.20"]
[Round "-"]
[White "stevegleds"]
[Black "1600x"]
[Result "0-1"]
[WhiteElo "607"]
[BlackElo "1551"]
[TimeControl "300"]
[EndTime "10:53:01 PDT"]
[Termination "1600x won by resignation"]

1. e4 {[%clk 0:04:52.2]} 1... d5 {[%clk 0:04:56.1]} 2. e5 {[%clk 0:04:48.5]}
2... c6 {[%clk 0:04:54.4]} 3. Nf3 {[%clk 0:04:45]} 3... Bf5 {[%clk 0:04:52.1]}
4. d3 {[%clk 0:04:40.5]} 4... e6 {[%clk 0:04:50.5]} 5. Be2 {[%clk 0:04:36]} 5...
Ne7 {[%clk 0:04:48.4]} 6. O-O {[%clk 0:04:34.2]} 6... Nd7 {[%clk 0:04:46.5]} 7.
Nc3 {[%clk 0:04:32.8]} 7... c5 {[%clk 0:04:44.3]} 8. b3 {[%clk 0:04:23.7]} 8...
h6 {[%clk 0:04:41]} 9. Bb2 {[%clk 0:04:21.3]} 9... d4 {[%clk 0:04:22.5]} 10. Ne4
{[%clk 0:04:13.4]} 10... Nd5 {[%clk 0:04:20.3]} 11. c4 {[%clk 0:04:05.8]} 11...
Bxe4 {[%clk 0:04:18.6]} 12. dxe4 {[%clk 0:04:04.3]} 12... Nb4 {[%clk 0:04:17.1]}
13. a3 {[%clk 0:03:53.2]} 13... Nc6 {[%clk 0:04:14.3]} 14. Re1 {[%clk 0:03:47]}
14... Be7 {[%clk 0:04:12]} 15. b4 {[%clk 0:03:39.2]} 15... Qb6 {[%clk
0:04:10.1]} 16. b5 {[%clk 0:03:24.8]} 16... Ncxe5 {[%clk 0:03:43.2]} 17. Nxe5
{[%clk 0:03:17.8]} 17... Nxe5 {[%clk 0:03:41.1]} 18. a4 {[%clk 0:03:06.4]} 18...
a6 {[%clk 0:03:39.1]} 19. Qb3 {[%clk 0:03:02]} 19... Ng6 {[%clk 0:03:37.2]} 20.
Bf3 {[%clk 0:02:49.7]} 20... axb5 {[%clk 0:03:33.9]} 21. axb5 {[%clk 0:02:40.1]}
21... O-O {[%clk 0:03:30.9]} 22. Rxa8 {[%clk 0:02:33.7]} 22... Rxa8 {[%clk
0:03:28.6]} 23. Ra1 {[%clk 0:02:32]} 23... Rxa1+ {[%clk 0:03:25.7]} 24. Bxa1
{[%clk 0:02:31.3]} 24... Qa5 {[%clk 0:03:21.7]} 25. Qd1 {[%clk 0:02:13]} 25...
Ne5 {[%clk 0:02:40.5]} 26. Bb2 {[%clk 0:01:57]} 26... Nxc4 {[%clk 0:02:36.3]}
27. h3 {[%clk 0:01:50.8]} 27... Nxb2 {[%clk 0:02:21.1]} 28. Bh5 {[%clk 0:01:50]}
28... Nxd1 {[%clk 0:02:19.7]} 0-1

[Event "Live Chess"]
[Site "Chess.com"]
[Date "2023.05.20"]
[Round "-"]
[White "Supertromp"]
[Black "ranvir123"]
[Result "1-0"]
[WhiteElo "2183"]
[BlackElo "885"]
[TimeControl "300"]
[EndTime "10:53:07 PDT"]
[Termination "Supertromp won by resignation"]

1. e4 {[%clk 0:04:58.8]} 1... e5 {[%clk 0:04:58.4]} 2. Nf3 {[%clk 0:04:57.8]}
2... Nc6 {[%clk 0:04:56.9]} 3. Bc4 {[%clk 0:04:57.1]} 3... Bc5 {[%clk
0:04:50.7]} 4. d3 {[%clk 0:04:54.9]} 4... Nf6 {[%clk 0:04:46.7]} 5. O-O {[%clk
0:04:53]} 5... O-O {[%clk 0:04:42.6]} 6. c3 {[%clk 0:04:50.2]} 6... d6 {[%clk
0:04:35.7]} 7. Nbd2 {[%clk 0:04:39.8]} 7... Bg4 {[%clk 0:04:32.5]} 8. a4 {[%clk
0:04:34.6]} 8... a5 {[%clk 0:04:11.3]} 9. Re1 {[%clk 0:04:27.5]} 9... Ne7 {[%clk
0:03:53.6]} 10. Nf1 {[%clk 0:04:22.8]} 10... d5 {[%clk 0:03:47.3]} 11. exd5
{[%clk 0:04:16.3]} 11... Nexd5 {[%clk 0:03:43.3]} 12. h3 {[%clk 0:04:15.3]}
12... Bh5 {[%clk 0:03:34.4]} 13. Ng3 {[%clk 0:04:14.3]} 13... Bxf3 {[%clk
0:03:31.9]} 14. Qxf3 {[%clk 0:04:13.2]} 14... Nf4 {[%clk 0:03:23.8]} 15. Bxf4
{[%clk 0:04:10]} 15... exf4 {[%clk 0:03:14.5]} 16. Qxf4 {[%clk 0:04:08.9]} 16...
Re8 {[%clk 0:03:00.8]} 17. Qg5 {[%clk 0:03:40.5]} 17... Rxe1+ {[%clk 0:02:37]}
18. Rxe1 {[%clk 0:03:40.4]} 18... c6 {[%clk 0:02:13.8]} 19. Qxc5 {[%clk
0:03:38.7]} 1-0

[Event "Live Chess"]
[Site "Chess.com"]
[Date "2023.05.20"]
[Round "-"]
[White "xx_blindpuffin_xx"]
[Black "TobyQuaite"]
[Result "1-0"]
[WhiteElo "2191"]
[BlackElo "1700"]
[TimeControl "300"]
[EndTime "10:53:13 PDT"]
[Termination "xx_blindpuffin_xx won by resignation"]

1. d4 {[%clk 0:04:58.5]} 1... e6 {[%clk 0:04:59]} 2. Bf4 {[%clk 0:04:56.3]} 2...
Nf6 {[%clk 0:04:57.7]} 3. e3 {[%clk 0:04:55.4]} 3... c5 {[%clk 0:04:56]} 4. c3
{[%clk 0:04:53.9]} 4... d5 {[%clk 0:04:54.5]} 5. Nd2 {[%clk 0:04:53]} 5... Qb6
{[%clk 0:04:52.3]} 6. Qb3 {[%clk 0:04:50]} 6... Nbd7 {[%clk 0:04:48.4]} 7. Qxb6
{[%clk 0:04:42.7]} 7... Nxb6 {[%clk 0:04:47.3]} 8. Ngf3 {[%clk 0:04:40.5]} 8...
cxd4 {[%clk 0:04:42.3]} 9. exd4 {[%clk 0:04:37.6]} 9... Nbd7 {[%clk 0:04:32.8]}
10. h3 {[%clk 0:04:36.2]} 10... b6 {[%clk 0:04:31.9]} 11. Bb5 {[%clk 0:04:34.5]}
11... Bb7 {[%clk 0:04:30.3]} 12. O-O {[%clk 0:04:26.5]} 12... a6 {[%clk
0:04:29.3]} 13. Bd3 {[%clk 0:04:24.7]} 13... Ne4 {[%clk 0:04:22.8]} 14. Rfe1
{[%clk 0:04:23]} 14... f5 {[%clk 0:04:21.3]} 15. Ne5 {[%clk 0:04:19.3]} 15...
Nxe5 {[%clk 0:04:19.9]} 16. dxe5 {[%clk 0:04:14.7]} 16... Bc5 {[%clk 0:04:17.2]}
17. Re2 {[%clk 0:04:05.5]} 17... g5 {[%clk 0:04:11]} 18. Bxe4 {[%clk 0:04:01.3]}
18... gxf4 {[%clk 0:04:05.6]} 19. Bf3 {[%clk 0:04:00.8]} 19... Rg8 {[%clk
0:03:49.3]} 20. b4 {[%clk 0:03:57.5]} 20... Be7 {[%clk 0:03:46.2]} 21. Nb3
{[%clk 0:03:54.4]} 21... Kd7 {[%clk 0:03:42.1]} 22. Rd1 {[%clk 0:03:52.2]} 22...
Kc7 {[%clk 0:03:28.5]} 23. Nd4 {[%clk 0:03:47.8]} 23... Rg6 {[%clk 0:03:16.7]}
24. Rc2 {[%clk 0:02:38.7]} 24... b5 {[%clk 0:03:00.9]} 25. a4 {[%clk 0:02:32.1]}
25... Bc6 {[%clk 0:02:33.3]} 26. Ra2 {[%clk 0:02:16.1]} 26... bxa4 {[%clk
0:02:29]} 27. Nxc6 {[%clk 0:02:13.4]} 27... Kxc6 {[%clk 0:02:28.9]} 28. Rxa4
{[%clk 0:02:12.2]} 28... Kb5 {[%clk 0:02:28.6]} 29. Ra5+ {[%clk 0:02:10.4]}
29... Kb6 {[%clk 0:02:25.1]} 30. Rda1 {[%clk 0:02:08.2]} 30... Ra7 {[%clk
0:01:52.2]} 31. Be2 {[%clk 0:02:06.7]} 31... Rg8 {[%clk 0:01:46]} 32. Rxa6+
{[%clk 0:02:04.7]} 32... Rxa6 {[%clk 0:01:40.3]} 33. Rxa6+ {[%clk 0:02:04.6]}
33... Kb7 {[%clk 0:01:38.9]} 34. Rxe6 {[%clk 0:02:03.6]} 1-0